fUST/lending_fUST_20240721
["ID","MTS","AMOUNT","RATE_DAILY","PERIOD"]
[332823216,1721554238780,-735.15,0.00013698,2]
[332823217,1721554238789,-500.0,0.00013698,2]
[332823218,1721554238798,-500.0,0.00013698,2]
[332823219,1721554238808,-500.0,0.00013698,2]
[332823220,1721554238817,-500.0,0.00013698,2]
[332823221,1721554238826,-242.53895911,0.00013698,2]
[332823222,1721554238836,-500.0,0.00013698,2]
[332823223,1721554238846,-500.0,0.00013698,2]
[332823224,1721554238855,-500.0,0.00013698,2]
[332823225,1721554238864,-500.0,0.00013698,2]
[332823226,1721554238873,-632.8,0.00013698,2]
[332823227,1721554238886,-534.19006459,0.00013698,2]
[332823228,1721554238895,-500.0,0.00013698,2]
[332823229,1721554238907,-26.99066917,0.00013698,2]
[332823237,1721554240108,-434.02247936,0.00013698,2]
[332823238,1721554240121,-249.01685147,0.00013698,2]
[332823239,1721554240133,-500.0,0.00013698,2]
[332823240,1721554240143,-500.0,0.00013698,2]
[332823241,1721554240153,-500.0,0.00013698,2]
[332823243,1721554240162,-500.0,0.00013698,2]
[332823245,1721554240172,-500.0,0.00013698,2]
[332823246,1721554240183,-338.04767362,0.00013698,2]
[332823247,1721554240197,-161.95232638,0.00013698,2]
[332823249,1721554240207,-500.0,0.00013698,2]
[332823251,1721554240217,-500.0,0.00013698,2]
[332823253,1721554240226,-500.0,0.00013698,2]
[332823255,1721554240235,-500.0,0.00013698,2]
[332823257,1721554240244,-581.29,0.00013698,2]
[332823259,1721554240254,-395.5173217,0.00013698,2]
[332823261,1721554240267,-104.4826783,0.00013698,2]
[332823263,1721554240277,-500.0,0.00013698,2]
[332823265,1721554240288,-500.0,0.00013698,2]
[332823267,1721554240298,-500.0,0.00013698,2]
[332823269,1721554240308,-500.97080716,0.00013698,2]
[332823271,1721554240317,-500.0,0.00013698,2]
[332823273,1721554240326,-1515.4,0.00013698,2]
[332823275,1721554240336,-500.0,0.00013698,2]
[332823277,1721554240345,-500.0,0.00013698,2]
[332823279,1721554240354,-500.0,0.00013698,2]
[332823280,1721554240363,-500.0,0.00013698,2]
[332823281,1721554240372,-500.0,0.00013698,2]
[332823282,1721554240382,-502.05,0.00013698,2]
[332823283,1721554240392,-500.0,0.00013698,2]
[332823284,1721554240403,-500.0,0.00013698,2]
[332823285,1721554240413,-2366.75,0.00013698,2]
[332823286,1721554240422,-500.0,0.00013698,2]
[332823287,1721554240431,-1454.63,0.00013698,2]
[332823288,1721554240440,-500.0,0.00013698,2]
[332823289,1721554240449,-500.0,0.00013698,2]
[332823290,1721554240459,-626.0,0.00013698,2]
[332823291,1721554240468,-500.0,0.00013698,2]
[332823292,1721554240477,-500.0,0.00013698,2]
[332823293,1721554240487,-500.0,0.00013698,2]
[332823294,1721554240496,-500.0,0.00013698,2]
[332823295,1721554240505,-707.87,0.00013698,2]
[332823296,1721554240515,-500.0,0.00013698,2]
[332823297,1721554240524,-588.75434502,0.00013698,2]
[332823298,1721554240533,-927.86,0.00013698,2]
[332823299,1721554240542,-500.0,0.00013698,2]
[332823300,1721554240551,-500.0,0.00013698,2]
[332823301,1721554240564,-500.0,0.00013698,2]
[332823302,1721554240573,-500.0,0.00013698,2]
[332823303,1721554240583,-500.0,0.00013698,2]
[332823304,1721554240592,-1187.2,0.00013698,2]
[332823305,1721554240602,-669.01,0.00013698,2]
[332823306,1721554240612,-500.0,0.00013698,2]
[332823307,1721554240622,-621.55,0.00013698,2]
[332823308,1721554240634,-500.0,0.00013698,2]
[332823309,1721554240644,-500.0,0.00013698,2]
[332823310,1721554240656,-771.94,0.00013698,2]
[332823311,1721554240669,-634.68,0.00013698,2]
[332823312,1721554240679,-2270.54,0.00013698,2]
[332823313,1721554240689,-501.01,0.00013698,2]
[332823314,1721554240699,-3419.06,0.00013698,2]
[332823315,1721554240709,-500.0,0.00013698,2]
[332823316,1721554240721,-512.47,0.00013698,2]
[332823317,1721554240730,-500.0,0.00013698,2]
[332823318,1721554240740,-500.0,0.00013698,2]
[332823319,1721554240749,-500.0,0.00013698,2]
[332823320,1721554240758,-1322.03,0.00013698,2]
[332823321,1721554240768,-500.0,0.00013698,2]
[332823322,1721554240779,-500.0,0.00013698,2]
[332823323,1721554240791,-500.0,0.00013698,2]
[332823324,1721554240802,-956.04,0.00013698,2]
[332823325,1721554240812,-500.0,0.00013698,2]
[332823326,1721554240821,-500.0,0.00013698,2]
[332823327,1721554240830,-500.0,0.00013698,2]
[332823328,1721554240840,-500.0,0.00013698,2]
[332823329,1721554240849,-500.0,0.00013698,2]
[332823330,1721554240858,-500.0,0.00013698,2]
[332823331,1721554240867,-500.0,0.00013698,2]
[332823332,1721554240877,-500.0,0.00013698,2]
[332823333,1721554240887,-500.0,0.00013698,2]
[332823334,1721554240896,-500.0,0.00013698,2]
[332823335,1721554240906,-1692.4,0.00013698,2]
[332823336,1721554240916,-500.0,0.00013698,2]
[332823337,1721554240925,-500.0,0.00013698,2]
[332823338,1721554240935,-500.0,0.00013698,2]
[332823339,1721554240944,-500.0,0.00013698,2]
[332823340,1721554240953,-486.08324976,0.00013698,2]
[332823341,1721554240963,-500.0,0.00013698,2]
[332823342,1721554240972,-500.0,0.00013698,2]
[332823343,1721554240981,-1561.01,0.00013698,2]
[332823344,1721554240991,-500.0,0.00013698,2]
[332823345,1721554241000,-500.0,0.00013698,2]
[332823346,1721554241010,-500.0,0.00013698,2]
[332823347,1721554241019,-500.0,0.00013698,2]
[332823348,1721554241029,-630.04,0.00013698,2]
[332823349,1721554241038,-500.0,0.00013698,2]
[332823350,1721554241047,-500.0,0.00013698,2]
[332823351,1721554241057,-728.32,0.00013698,2]
[332823352,1721554241066,-756.49,0.00013698,2]
[332823353,1721554241075,-685.47,0.00013698,2]
[332823354,1721554241085,-500.0,0.00013698,2]
[332823355,1721554241094,-500.0,0.00013698,2]
[332823356,1721554241104,-665.49,0.00013698,2]
[332823357,1721554241113,-508.5400606,0.00013698,2]
[332823358,1721554241123,-500.0,0.00013698,2]
[332823359,1721554241132,-500.0,0.00013698,2]
[332823360,1721554241142,-1485.52,0.00013698,2]
[332823361,1721554241151,-862.45,0.00013698,2]
[332823362,1721554241160,-500.0,0.00013698,2]
[332823363,1721554241170,-1117.11,0.00013698,2]
[332823364,1721554241179,-2409.94,0.00013698,2]
[332823365,1721554241188,-500.0,0.00013698,2]
[332823366,1721554241198,-500.0,0.00013698,2]
[332823367,1721554241218,-500.0,0.00013698,2]
[332823368,1721554241229,-500.0,0.00013698,2]
[332823369,1721554241239,-2142.94,0.00013698,2]
[332823370,1721554241249,-1479.51,0.00013698,2]
[332823371,1721554241258,-500.0,0.00013698,2]
[332823372,1721554241268,-500.0,0.00013698,2]
[332823373,1721554241277,-673.08,0.00013698,2]
[332823374,1721554241287,-1458.15,0.00013698,2]
[332823375,1721554241296,-500.0,0.00013698,2]
[332823376,1721554241305,-557.31681717,0.00013698,2]
[332823377,1721554241315,-516.23,0.00013698,2]
[332823378,1721554241325,-379.2318798,0.00013698,2]
[332823379,1721554241335,-500.0,0.00013698,2]
[332823380,1721554241345,-500.0,0.00013698,2]
[332823381,1721554241355,-500.0,0.00013698,2]
[332823382,1721554241367,-500.0,0.00013698,2]
[332823383,1721554241376,-500.0,0.00013698,2]
[332823384,1721554241387,-500.0,0.00013698,2]
[332823385,1721554241398,-500.0,0.00013698,2]
[332823386,1721554241408,-157.50132365,0.00013698,2]
[332823387,1721554241419,-500.0,0.00013698,2]
[332823388,1721554241428,-500.0,0.00013698,2]
[332823389,1721554241439,-500.0,0.00013698,2]
[332823390,1721554241448,-500.0,0.00013698,2]
[332823391,1721554241459,-500.0,0.00013698,2]
[332823392,1721554241470,-708.86,0.00013698,2]
[332823393,1721554241480,-500.0,0.00013698,2]
[332823394,1721554241491,-1490.79,0.00013698,2]
[332823395,1721554241503,-624.74,0.00013698,2]
[332823396,1721554241513,-500.0,0.00013698,2]
[332823397,1721554241524,-504.61416749,0.00013698,2]
[332823398,1721554241535,-500.0,0.00013698,2]
[332823399,1721554241545,-500.0,0.00013698,2]
[332823400,1721554241559,-500.0,0.00013698,2]
[332823401,1721554241571,-230.56124379,0.00013698,2]
[332823402,1721554241583,-500.0,0.00013698,2]
[332823403,1721554241592,-500.0,0.00013698,2]
[332823404,1721554241601,-524.21,0.00013698,2]
[332823405,1721554241611,-500.0,0.00013698,2]
[332823406,1721554241620,-714.13,0.00013698,2]
[332823407,1721554241631,-500.0,0.00013698,2]
[332823408,1721554241640,-500.0,0.00013698,2]
[332823409,1721554241649,-500.0,0.00013698,2]
[332823410,1721554241659,-809.87,0.00013698,2]
[332823411,1721554241669,-1014.14,0.00013698,2]
[332823412,1721554241678,-1151.96,0.00013698,2]
[332823413,1721554241687,-3420.65,0.00013698,2]
[332823414,1721554241697,-1827.1,0.00013698,2]
[332823415,1721554241706,-691.78,0.00013698,2]
[332823416,1721554241716,-500.0,0.00013698,2]
[332823417,1721554241727,-500.0,0.00013698,2]
[332823418,1721554241737,-895.64,0.00013698,2]
[332823419,1721554241747,-500.0,0.00013698,2]
[332823420,1721554241757,-1455.01,0.00013698,2]
[332823421,1721554241766,-500.0,0.00013698,2]
[332823422,1721554241776,-500.0,0.00013698,2]
[332823423,1721554241786,-500.0,0.00013698,2]
[332823424,1721554242071,-500.0,0.00013698,2]
[332823425,1721554242081,-758.26,0.00013698,2]
[332823426,1721554242091,-500.0,0.00013698,2]
[332823427,1721554242100,-1253.15,0.00013698,2]
[332823428,1721554242110,-500.0,0.00013698,2]
[332823429,1721554242120,-500.0,0.00013698,2]
[332823430,1721554242129,-503.19403666,0.00013698,2]
[332823431,1721554242142,-7732.48,0.00013698,2]
[332823432,1721554242152,-500.0,0.00013698,2]
[332823433,1721554242164,-500.0,0.00013698,2]
[332823434,1721554242173,-500.0,0.00013698,2]
[332823435,1721554242182,-875.37,0.00013698,2]
[332823436,1721554242191,-500.0,0.00013698,2]
[332823437,1721554242201,-4754.05,0.00013698,2]
[332823438,1721554242210,-507.42,0.00013698,2]
[332823439,1721554242219,-500.0,0.00013698,2]
[332823440,1721554242229,-500.0,0.00013698,2]
[332823441,1721554242241,-882.07,0.00013698,2]
[332823442,1721554242251,-500.0,0.00013698,2]
[332823443,1721554242260,-241.56863767,0.00013698,2]
[332823444,1721554242269,-500.0,0.00013698,2]
[332823445,1721554242278,-500.0,0.00013698,2]
[332823446,1721554242288,-1581.37,0.00013698,2]
[332823447,1721554242297,-500.0,0.00013698,2]
[332823448,1721554242307,-2266.27,0.00013698,2]
[332823449,1721554242316,-1035.35,0.00013698,2]
[332823450,1721554242325,-1759.5,0.00013698,2]
[332823451,1721554242335,-6230.92,0.00013698,2]
[332823452,1721554242344,-500.0,0.00013698,2]
[332823453,1721554242353,-1212.34,0.00013698,2]
[332823454,1721554242363,-524.31,0.00013698,2]
[332823455,1721554242372,-928.96,0.00013698,2]
[332823456,1721554242381,-1571.13,0.00013698,2]
[332823457,1721554242391,-500.0,0.00013698,2]
[332823458,1721554242400,-500.0,0.00013698,2]
[332823459,1721554242410,-500.0,0.00013698,2]
[332823460,1721554242420,-500.0,0.00013698,2]
[332823462,1721554242429,-1466.64,0.00013698,2]
[332823463,1721554242439,-3607.17,0.00013698,2]
[332823464,1721554242448,-825.28,0.00013698,2]
[332823465,1721554242457,-595.37,0.00013698,2]
[332823466,1721554242466,-500.0,0.00013698,2]
[332823467,1721554242475,-500.0,0.00013698,2]
[332823469,1721554242484,-553.97,0.00013698,2]
[332823471,1721554242493,-675.86,0.00013698,2]
[332823472,1721554242503,-503.2,0.00013698,2]
[332823473,1721554242512,-2753.2,0.00013698,2]
[332823474,1721554242521,-500.0,0.00013698,2]
[332823475,1721554242530,-620.8,0.00013698,2]
[332823476,1721554242539,-500.0,0.00013698,2]
[332823477,1721554242548,-500.0,0.00013698,2]
[332823478,1721554242557,-500.0,0.00013698,2]
[332823480,1721554242570,-500.0,0.00013698,2]
[332823481,1721554242578,-1195.73,0.00013698,2]
[332823482,1721554242588,-500.0,0.00013698,2]
[332823483,1721554242597,-500.0,0.00013698,2]
[332823484,1721554242607,-549.39,0.00013698,2]
[332823485,1721554242616,-766.34,0.00013698,2]
[332823486,1721554242625,-1412.22,0.00013698,2]
[332823487,1721554242635,-500.0,0.00013698,2]
[332823488,1721554242644,-1257.54,0.00013698,2]
[332823489,1721554242653,-1399.54,0.00013698,2]
[332823490,1721554242662,-737.12,0.00013698,2]
[332823491,1721554242672,-634.69,0.00013698,2]
[332823493,1721554242681,-14532.13,0.00013698,2]
[332823495,1721554242691,-6110.4,0.00013698,2]
[332823497,1721554242700,-500.0,0.00013698,2]
[332823499,1721554242709,-500.0,0.00013698,2]
[332823501,1721554242718,-563.79,0.00013698,2]
[332823503,1721554242727,-502.61,0.00013698,2]
[332823505,1721554242737,-500.0,0.00013698,2]
[332823507,1721554242746,-503.95767655,0.00013698,2]
[332823508,1721554242757,-2706.29,0.00013698,2]
[332823509,1721554242767,-2027.64,0.00013698,2]
[332823510,1721554242777,-4438.28,0.00013698,2]
[332823511,1721554242786,-500.0,0.00013698,2]
[332823512,1721554242796,-2364.62,0.00013698,2]
[332823513,1721554242808,-765.08,0.00013698,2]
[332823515,1721554242818,-1266.25,0.00013698,2]
[332823517,1721554242827,-500.0,0.00013698,2]
[332823518,1721554242838,-2247.23,0.00013698,2]
[332823519,1721554242848,-500.0,0.00013698,2]
[332823520,1721554242857,-500.0,0.00013698,2]
[332823522,1721554242869,-500.0,0.00013698,2]
[332823524,1721554242879,-1728.25,0.00013698,2]
[332823525,1721554242891,-848.87,0.00013698,2]
[332823526,1721554242901,-1523.14,0.00013698,2]
[332823527,1721554242911,-2477.86,0.00013698,2]
[332823528,1721554242922,-693.77,0.00013698,2]
[332823529,1721554242931,-3850.09,0.00013698,2]
[332823530,1721554242941,-500.0,0.00013698,2]
[332823532,1721554242950,-500.0,0.00013698,2]
[332823533,1721554242960,-1148.22,0.00013698,2]
[332823534,1721554242970,-962.08,0.00013698,2]
[332823535,1721554242981,-500.0,0.00013698,2]
[332823536,1721554242991,-500.0,0.00013698,2]
[332823537,1721554243002,-500.0,0.00013698,2]
[332823538,1721554243012,-880.96,0.00013698,2]
[332823539,1721554243022,-818.3,0.00013698,2]
[332823540,1721554243033,-835.0,0.00013698,2]
[332823541,1721554243044,-3950.32,0.00013698,2]
[332823542,1721554243054,-1769.09,0.00013698,2]
[332823543,1721554243065,-500.0,0.00013698,2]
[332823544,1721554243076,-500.0,0.00013698,2]
[332823545,1721554243087,-500.0,0.00013698,2]
[332823546,1721554243097,-500.0,0.00013698,2]
[332823547,1721554243108,-1562.7,0.00013698,2]
[332823548,1721554243119,-1124.71,0.00013698,2]
[332823550,1721554243130,-1525.4,0.00013698,2]
[332823551,1721554243143,-500.0,0.00013698,2]
[332823552,1721554243155,-8868.57,0.00013698,2]
[332823553,1721554243164,-926.75,0.00013698,2]
[332823554,1721554243176,-500.0,0.00013698,2]
[332823555,1721554243187,-688.37,0.00013698,2]
[332823556,1721554243198,-889.92,0.00013698,2]
[332823557,1721554243207,-2449.89,0.00013698,2]
[332823559,1721554243218,-816.95,0.00013698,2]
[332823560,1721554243228,-500.0,0.00013698,2]
[332823561,1721554243238,-500.0,0.00013698,2]
[332823562,1721554243247,-1092.45,0.00013698,2]
[332823563,1721554243257,-500.0,0.00013698,2]
[332823564,1721554243266,-2603.37,0.00013698,2]
[332823565,1721554243276,-510.13,0.00013698,2]
[332823566,1721554243285,-500.0,0.00013698,2]
[332823567,1721554243295,-931.95,0.00013698,2]
[332823568,1721554243305,-500.0,0.00013698,2]
[332823569,1721554243315,-2046.26,0.00013698,2]
[332823570,1721554243325,-1669.99,0.00013698,2]
[332823571,1721554243334,-578.25,0.00013698,2]
[332823572,1721554243345,-742.13,0.00013698,2]
[332823573,1721554243355,-500.0,0.00013698,2]
[332823574,1721554243368,-859.77,0.00013698,2]
[332823575,1721554243378,-992.07,0.00013698,2]
[332823576,1721554243391,-500.0,0.00013698,2]
[332823577,1721554243403,-10148.77,0.00013698,2]
[332823578,1721554243412,-500.0,0.00013698,2]
[332823579,1721554243422,-445.34052165,0.00013698,2]
[332823582,1721554244784,-600.0,9.799e-05,2]
[332823583,1721554244796,-54.65947835,0.00013698,2]
[332823584,1721554244806,-500.0,0.00013698,2]
[332823585,1721554244816,-759.93,0.00013698,2]
[332823586,1721554244827,-1420.76,0.00013698,2]
[332823587,1721554244837,-500.0,0.00013698,2]
[332823588,1721554244847,-500.0,0.00013698,2]
[332823589,1721554244859,-500.0,0.00013698,2]
[332823590,1721554244871,-985.83,0.00013698,2]
[332823591,1721554244882,-500.0,0.00013698,2]
[332823592,1721554244893,-586.52,0.00013698,2]
[332823593,1721554244903,-500.0,0.00013698,2]
[332823594,1721554244913,-500.0,0.00013698,2]
[332823595,1721554244924,-3327.61,0.00013698,2]
[332823596,1721554244934,-626.92,0.00013698,2]
[332823597,1721554244943,-500.0,0.00013698,2]
[332823598,1721554244953,-3071.86692708,0.00013698,2]
[332823599,1721554244965,-1906.09,0.00013698,2]
[332823600,1721554244976,-524.8,0.00013698,2]
[332823601,1721554244986,-571.72,0.00013698,2]
[332823602,1721554244995,-500.0,0.00013698,2]
[332823603,1721554245005,-500.0,0.00013698,2]
[332823604,1721554245015,-2246.23,0.00013698,2]
[332823605,1721554245024,-1751.75,0.00013698,2]
[332823606,1721554245034,-500.0,0.00013698,2]
[332823607,1721554245044,-500.0,0.00013698,2]
[332823608,1721554245054,-1525.0,0.00013698,2]
[332823609,1721554245063,-302.4064213,0.00013699,2]
[332823610,1721554245072,-166.666666,0.00013699,2]
[332823611,1721554245081,-3000.0,0.00013699,2]
[332823612,1721554245091,-2947.39155022,0.00013726,2]
[332823613,1721554245101,-706.78773536,0.00013786,2]
[332823614,1721554245111,-2947.39155022,0.00013799,2]
[332823615,1721554245120,-841.9969366,0.00013832,2]
[332823616,1721554245129,-168.106529,0.00013866,2]
[332823617,1721554245139,-731.316126,0.00013866,2]
[332823618,1721554245149,-2947.39155022,0.00013872,2]
[332823619,1721554245159,-1408.0,0.0001389,2]
[332823620,1721554245168,-268.231,0.0001389,2]
[332823621,1721554245178,-150.267,0.00013917,2]
[332823622,1721554245187,-250.0,0.00013917,2]
[332823623,1721554245197,-214.326,0.00013917,2]
[332823624,1721554245206,-151.0,0.00013962,2]
[332823625,1721554245216,-151.0,0.00013962,2]
[332823626,1721554245226,-151.0,0.00013962,2]
[332823627,1721554245236,-151.0,0.00013962,2]
[332823628,1721554245246,-151.0,0.00013962,2]
[332823629,1721554245255,-500.0,0.00013972,2]
[332823630,1721554245266,-688.09,0.00013972,2]
[332823631,1721554245276,-151.0,0.00013972,2]
[332823632,1721554245286,-151.0,0.00013972,2]
[332823633,1721554245295,-151.0,0.00013972,2]
[332823634,1721554245305,-151.0,0.00013972,2]
[332823635,1721554245314,-500.0,0.00013972,2]
[332823636,1721554245324,-735.15,0.00013972,2]
[332823637,1721554245333,-500.0,0.00013972,2]
[332823638,1721554245343,-500.0,0.00013972,2]
[332823639,1721554245353,-500.0,0.00013972,2]
[332823640,1721554245362,-500.0,0.00013972,2]
[332823641,1721554245372,-370.66818343,0.00013972,2]
[332823642,1721554245382,-500.0,0.00013972,2]
[332823643,1721554245394,-500.0,0.00013972,2]
[332823644,1721554245403,-500.0,0.00013972,2]
[332823645,1721554245416,-151.0,0.00013972,2]
[332823646,1721554245427,-151.0,0.00013972,2]
[332823647,1721554245437,-151.0,0.00013972,2]
[332823649,1721554245447,-632.8,0.00013972,2]
[332823651,1721554245456,-151.0,0.00013972,2]
[332823653,1721554245466,-151.0,0.00013972,2]
[332823654,1721554245475,-151.0,0.00013972,2]
[332823655,1721554245485,-151.0,0.00013972,2]
[332823656,1721554245494,-500.0,0.00013972,2]
[332823657,1721554245503,-710.03,0.00013972,2]
[332823658,1721554245512,-500.0,0.00013972,2]
[332823659,1721554245521,-151.0,0.00013972,2]
[332823660,1721554245531,-151.0,0.00013972,2]
[332823661,1721554245540,-151.0,0.00013972,2]
[332823662,1721554245550,-151.0,0.00013972,2]
[332823663,1721554245563,-178.713831,0.00013972,2]
[332823664,1721554245573,-500.0,0.00013972,2]
[332823665,1721554245582,-151.0,0.00013972,2]
[332823666,1721554245591,-151.0,0.00013972,2]
[332823667,1721554245601,-151.072714,0.00013972,2]
[332823668,1721554245610,-500.0,0.00013972,2]
[332823669,1721554245619,-500.0,0.00013972,2]
[332823670,1721554245630,-500.0,0.00013972,2]
[332823671,1721554245640,-500.0,0.00013972,2]
[332823672,1721554245650,-500.0,0.00013972,2]
[332823673,1721554245659,-460.11055375,0.00013972,2]
[332823674,1721554245669,-500.0,0.00013972,2]
[332823675,1721554245678,-500.0,0.00013972,2]
[332823677,1721554245687,-581.29,0.00013972,2]
[332823679,1721554245696,-151.0,0.00013972,2]
[332823680,1721554245705,-151.0,0.00013972,2]
[332823683,1721554245714,-151.0,0.00013972,2]
[332823685,1721554245724,-151.0,0.00013972,2]
[332823687,1721554245734,-151.0,0.00013972,2]
[332823689,1721554245743,-151.0,0.00013972,2]
[332823691,1721554245753,-151.0,0.00013972,2]
[332823693,1721554245762,-151.0,0.00013972,2]
[332823695,1721554245771,-151.0,0.00013972,2]
[332823697,1721554245781,-500.0,0.00013972,2]
[332823699,1721554245790,-500.0,0.00013972,2]
[332823701,1721554245801,-500.0,0.00013972,2]
[332823704,1721554245811,-500.0,0.00013972,2]
[332823707,1721554245820,-151.0,0.00013972,2]
[332823708,1721554245830,-151.0,0.00013972,2]
[332823711,1721554245840,-151.0,0.00013972,2]
[332823714,1721554245849,-151.0,0.00013972,2]
[332823717,1721554245859,-274.216436,0.00013972,2]
[332823720,1721554245868,-500.0,0.00013972,2]
[332823722,1721554245877,-1515.4,0.00013972,2]
[332823725,1721554245887,-500.0,0.00013972,2]
[332823727,1721554245897,-500.0,0.00013972,2]
[332823729,1721554245906,-500.0,0.00013972,2]
[332823730,1721554245916,-500.0,0.00013972,2]
[332823734,1721554245926,-500.0,0.00013972,2]
[332823737,1721554245936,-502.05,0.00013972,2]
[332823739,1721554245948,-151.0,0.00013972,2]
[332823740,1721554245957,-151.0,0.00013972,2]
[332823741,1721554245967,-151.0,0.00013972,2]
[332823742,1721554245977,-151.0,0.00013972,2]
[332823743,1721554245987,-151.0,0.00013972,2]
[332823744,1721554245997,-151.0,0.00013972,2]
[332823745,1721554246007,-151.0,0.00013972,2]
[332823746,1721554246018,-151.0,0.00013972,2]
[332823747,1721554246029,-500.0,0.00013972,2]
[332823748,1721554246039,-500.0,0.00013972,2]
[332823749,1721554246049,-2366.75,0.00013972,2]
[332823750,1721554246060,-500.0,0.00013972,2]
[332823751,1721554246070,-1454.63,0.00013972,2]
[332823752,1721554246081,-500.0,0.00013972,2]
[332823753,1721554246091,-270.75,0.00013972,2]
[332823754,1721554246101,-270.75,0.00013972,2]
[332823755,1721554246110,-270.75,0.00013972,2]
[332823756,1721554246120,-500.0,0.00013972,2]
[332823757,1721554246130,-270.75,0.00013972,2]
[332823758,1721554246140,-270.75,0.00013972,2]
[332823759,1721554246150,-270.75,0.00013972,2]
[332823760,1721554246160,-270.75,0.00013972,2]
[332823761,1721554246169,-270.75,0.00013972,2]
[332823762,1721554246178,-626.0,0.00013972,2]
[332823763,1721554246187,-442.10824523,0.00013972,2]
[332823764,1721554246197,-500.0,0.00013972,2]
[332823765,1721554246206,-500.0,0.00013972,2]
[332823766,1721554246215,-500.0,0.00013972,2]
[332823767,1721554246225,-707.87,0.00013972,2]
[332823768,1721554246235,-500.0,0.00013972,2]
[332823769,1721554246245,-927.86,0.00013972,2]
[332823770,1721554246256,-151.0,0.00013972,2]
[332823771,1721554246265,-500.0,0.00013972,2]
[332823772,1721554246275,-151.0,0.00013972,2]
[332823773,1721554246285,-151.0,0.00013972,2]
[332823774,1721554246295,-151.0,0.00013972,2]
[332823775,1721554246306,-500.0,0.00013972,2]
[332823776,1721554246317,-1187.2,0.00013972,2]
[332823777,1721554246327,-669.01,0.00013972,2]
[332823778,1721554246338,-267.60738683,0.00013972,2]
[332823779,1721554246349,-621.55,0.00013972,2]
[332823780,1721554246361,-500.0,0.00013972,2]
[332823781,1721554246371,-500.0,0.00013972,2]
[332823783,1721554246380,-771.94,0.00013972,2]
[332823785,1721554246391,-634.68,0.00013972,2]
[332823787,1721554246400,-2270.54,0.00013972,2]
[332823788,1721554246409,-501.01,0.00013972,2]
[332823789,1721554246419,-3419.06,0.00013972,2]
[332823790,1721554246428,-500.0,0.00013972,2]
[332823791,1721554246438,-512.47,0.00013972,2]
[332823793,1721554246447,-500.0,0.00013972,2]
[332823795,1721554246457,-500.0,0.00013972,2]
[332823797,1721554246467,-500.0,0.00013972,2]
[332823798,1721554246476,-1322.03,0.00013972,2]
[332823800,1721554246485,-500.0,0.00013972,2]
[332823802,1721554246494,-500.0,0.00013972,2]
[332823804,1721554246505,-500.0,0.00013972,2]
[332823806,1721554246514,-956.04,0.00013972,2]
[332823808,1721554246524,-500.0,0.00013972,2]
[332823809,1721554246534,-500.0,0.00013972,2]
[332823811,1721554246543,-500.0,0.00013972,2]
[332823813,1721554246551,-500.0,0.00013972,2]